fUSD/lending_fUSD_20250109
["ID","MTS","AMOUNT","RATE_DAILY","PERIOD"]
[348295551,1736435471700,-500.0,0.00011348,2]
[348295552,1736435471710,-500.0,0.00011348,2]
[348295553,1736435471720,-500.0,0.00011348,2]
[348295554,1736435471730,-500.0,0.00011348,2]
[348295555,1736435471741,-500.0,0.00011348,2]
[348295556,1736435471751,-504.42,0.00011348,2]
[348295557,1736435471760,-500.0,0.00011348,2]
[348295558,1736435471772,-399.83,0.00011348,2]
[348295559,1736435471781,-500.0,0.00011348,2]
[348295560,1736435471791,-1474.26,0.00011348,2]
[348295561,1736435471801,-1068.96,0.00011348,2]
[348295562,1736435471811,-2257.63,0.00011348,2]
[348295563,1736435471821,-1550.66,0.00011348,2]
[348295564,1736435471831,-2411.94,0.00011349,2]
[348295565,1736435471840,-610.52,0.00011349,2]
[348295566,1736435471850,-549.66,0.00011349,2]
[348295567,1736435471859,-958.29,0.00011349,2]
[348295568,1736435471869,-500.0,0.00011349,2]
[348295569,1736435471879,-150.0,0.00011353,2]
[348295570,1736435471889,-2516.81,0.00011364,2]
[348295571,1736435471900,-844.98,0.00011364,2]
[348295572,1736435471911,-526.76,0.00011364,2]
[348295573,1736435471922,-156.995149,0.00011365,2]
[348295574,1736435471932,-1621.63,0.00011365,2]
[348295575,1736435471943,-3527.89,0.00011365,2]
[348295576,1736435471953,-500.0,0.00011366,2]
[348295577,1736435471963,-500.0,0.00011366,2]
[348295578,1736435471973,-500.0,0.00011366,2]
[348295579,1736435471983,-1811.96,0.00011366,2]
[348295580,1736435471993,-1325.78,0.00011366,2]
[348295581,1736435472003,-1904.14,0.00011366,2]
[348295582,1736435472013,-986.79,0.00011366,2]
[348295583,1736435472024,-1138.85,0.00011366,2]
[348295584,1736435472034,-3077.27,0.00011366,2]
[348295585,1736435472043,-9056.59,0.00011366,2]
[348295586,1736435472054,-1508.02,0.00011366,2]
[348295587,1736435472064,-500.0,0.00011366,2]
[348295588,1736435472074,-500.0,0.00011366,2]
[348295589,1736435472084,-2101.42,0.00011366,2]
[348295590,1736435472093,-500.0,0.00011366,2]
[348295591,1736435472102,-500.0,0.00011366,2]
[348295592,1736435472112,-871.11,0.00011366,2]
[348295593,1736435472122,-834.82,0.00011366,2]
[348295594,1736435472132,-500.0,0.00011366,2]
[348295595,1736435472142,-1235.04,0.00011366,2]
[348295596,1736435472154,-1000.0,0.00011366,2]
[348295597,1736435472164,-692.05,0.00011366,2]
[348295598,1736435472174,-500.0,0.00011366,2]
[348295599,1736435472185,-1722.76,0.00011366,2]
[348295600,1736435472195,-1270.55,0.00011366,2]
[348295601,1736435472204,-2997.758,0.00011367,2]
[348295602,1736435472214,-180.481,0.00011367,2]
[348295603,1736435472224,-150.0,0.00011376,2]
[348295604,1736435472234,-206.68611674,0.000114,2]
[348295605,1736435472245,-150.0,0.0001143,2]
[348295606,1736435472255,-150.0,0.00011431,2]
[348295607,1736435472265,-150.0,0.00011456,2]
[348295608,1736435472276,-150.0,0.00011456,2]
[348295609,1736435472286,-150.0,0.00011479,2]
[348295610,1736435472296,-150.0,0.00011479,2]
[348295611,1736435472306,-150.0,0.00011479,2]
[348295612,1736435472316,-150.0,0.00011479,2]
[348295613,1736435472325,-150.0,0.00011479,2]
[348295614,1736435472335,-150.0,0.00011479,2]
[348295615,1736435472345,-150.0,0.00011479,2]
[348295616,1736435472356,-206.68611674,0.000115,2]
[348295617,1736435472366,-52000.0,0.000115,5]
[348295618,1736435472377,-150.0,0.00011507,2]
[348295619,1736435472387,-150.0,0.00011511,2]
[348295620,1736435472397,-150.0,0.00011517,2]
[348295621,1736435472407,-150.0,0.00011545,2]
[348295622,1736435472417,-3895.0,0.00011561,2]
[348295623,1736435472427,-1173.0,0.00011561,2]
[348295624,1736435472437,-150.0,0.00011561,2]
[348295625,1736435472447,-150.0,0.00011566,2]
[348295626,1736435472457,-150.0,0.00011584,2]
[348295627,1736435472468,-206.68611674,0.000116,2]
[348295628,1736435472477,-873.95,0.00011615,2]
[348295629,1736435472488,-853.78,0.00011615,2]
[348295630,1736435472497,-500.0,0.00011615,2]
[348295631,1736435472507,-1622.53,0.00011615,2]
[348295632,1736435472517,-736.68,0.00011615,2]
[348295633,1736435472531,-709.66,0.00011615,2]
[348295634,1736435472541,-1385.38,0.00011615,2]
[348295635,1736435472551,-2843.25,0.00011615,2]
[348295636,1736435472561,-1378.92,0.00011615,2]
[348295637,1736435472573,-686.902198,0.00011615,2]
[348295638,1736435472583,-890.85,0.00011615,2]
[348295639,1736435472592,-918.646778,0.00011615,2]
[348295640,1736435472603,-3339.53,0.00011615,2]
[348295641,1736435472613,-847.48,0.00011615,2]
[348295642,1736435472625,-554.43,0.00011615,2]
[348295643,1736435472635,-500.0,0.00011615,2]
[348295644,1736435472647,-3496.51,0.00011615,2]
[348295645,1736435472657,-500.0,0.00011615,2]
[348295646,1736435472670,-830.77,0.00011615,2]
[348295647,1736435472681,-500.0,0.00011615,2]
[348295648,1736435472691,-500.0,0.00011615,2]
[348295649,1736435472703,-1383.26,0.00011615,2]
[348295650,1736435472714,-913.75,0.00011615,2]
[348295651,1736435472724,-177.557736,0.00011615,2]
[348295652,1736435472734,-2581.58,0.00011615,2]
[348295653,1736435472745,-376.99,0.00011616,2]
[348295654,1736435472755,-500.0,0.00011616,2]
[348295655,1736435472765,-500.0,0.00011616,2]
[348295656,1736435472779,-534.52,0.00011616,2]
[348295657,1736435472790,-500.0,0.00011616,2]
[348295658,1736435472800,-500.0,0.00011616,2]
[348295659,1736435472810,-500.0,0.00011616,2]
[348295660,1736435472820,-500.0,0.00011616,2]
[348295661,1736435472830,-500.0,0.00011616,2]
[348295662,1736435472840,-500.0,0.00011616,2]
[348295663,1736435472849,-461.32,0.00011616,2]
[348295664,1736435472859,-500.0,0.00011616,2]
[348295665,1736435472869,-500.0,0.00011616,2]
[348295666,1736435472880,-233.38,0.00011616,2]
[348295667,1736435472891,-500.0,0.00011616,2]
[348295668,1736435472900,-333.19,0.00011616,2]
[348295669,1736435472910,-500.0,0.00011616,2]
[348295670,1736435472920,-500.0,0.00011616,2]
[348295671,1736435472930,-500.0,0.00011616,2]
[348295672,1736435472940,-500.0,0.00011616,2]
[348295673,1736435472951,-500.0,0.00011616,2]
[348295674,1736435472961,-500.0,0.00011616,2]
[348295675,1736435472971,-500.0,0.00011616,2]
[348295676,1736435472981,-631.08,0.00011616,2]
[348295677,1736435472990,-500.0,0.00011616,2]
[348295678,1736435473001,-500.0,0.00011616,2]
[348295679,1736435473010,-500.0,0.00011616,2]
[348295680,1736435473022,-569.56,0.00011616,2]
[348295681,1736435473031,-500.0,0.00011616,2]
[348295682,1736435473041,-500.0,0.00011616,2]
[348295683,1736435473052,-197.18,0.00011616,2]
[348295684,1736435473062,-500.0,0.00011616,2]
[348295685,1736435473072,-592.81,0.00011616,2]
[348295686,1736435473082,-2773.35,0.00011616,2]
[348295687,1736435473093,-500.0,0.00011616,2]
[348295688,1736435473103,-500.0,0.00011616,2]
[348295689,1736435473114,-500.0,0.00011616,2]
[348295690,1736435473124,-500.0,0.00011616,2]
[348295691,1736435473135,-500.0,0.00011616,2]
[348295692,1736435473144,-1523.64,0.00011616,2]
[348295693,1736435473155,-1540.84,0.00011616,2]
[348295694,1736435473165,-500.0,0.00011616,2]
[348295695,1736435473175,-500.0,0.00011616,2]
[348295696,1736435473185,-500.0,0.00011616,2]
[348295697,1736435473195,-500.0,0.00011616,2]
[348295698,1736435473205,-500.0,0.00011616,2]
[348295699,1736435473215,-4594.33,0.00011616,2]
[348295700,1736435473226,-550.47,0.00011616,2]
[348295701,1736435473236,-601.61,0.00011616,2]
[348295702,1736435473247,-500.0,0.00011616,2]
[348295703,1736435473258,-465.64,0.00011616,2]
[348295704,1736435473268,-500.0,0.00011616,2]
[348295705,1736435473283,-509.68,0.00011616,2]
[348295706,1736435473292,-679.55,0.00011616,2]
[348295707,1736435473302,-500.0,0.00011616,2]
[348295708,1736435473312,-630.88,0.00011616,2]
[348295709,1736435473322,-595.81,0.00011616,2]
[348295710,1736435473333,-623.89,0.00011616,2]
[348295711,1736435473344,-525.81,0.00011616,2]
[348295712,1736435473355,-500.0,0.00011616,2]
[348295713,1736435473365,-500.0,0.00011616,2]
[348295714,1736435473375,-500.0,0.00011616,2]
[348295715,1736435473385,-500.0,0.00011616,2]
[348295716,1736435473396,-741.61,0.00011616,2]
[348295717,1736435473407,-500.0,0.0001162,2]
[348295718,1736435473416,-2767.89,0.0001162,2]
[348295719,1736435473427,-4034.94,0.0001162,2]
[348295720,1736435473438,-819.48,0.0001162,2]
[348295721,1736435473448,-1727.46,0.0001162,2]
[348295722,1736435473458,-3578.28,0.0001162,2]
[348295723,1736435473469,-500.0,0.0001162,2]
[348295724,1736435473479,-1001.78,0.0001162,2]
[348295725,1736435473490,-500.0,0.0001162,2]
[348295726,1736435473500,-500.0,0.0001162,2]
[348295727,1736435473510,-740.95,0.0001162,2]
[348295728,1736435473522,-1720.06,0.0001162,2]
[348295729,1736435473533,-500.0,0.0001162,2]
[348295730,1736435473543,-650.21,0.0001162,2]
[348295731,1736435473553,-500.0,0.00011621,2]
[348295732,1736435473563,-500.0,0.00011621,2]
[348295733,1736435473574,-500.0,0.00011621,2]
[348295734,1736435473584,-500.0,0.00011621,2]
[348295735,1736435473594,-311.15,0.00011621,2]
[348295736,1736435473603,-715.91,0.00011621,2]
[348295737,1736435473613,-293.97,0.00011621,2]
[348295738,1736435473627,-500.0,0.00011621,2]
[348295739,1736435473636,-500.0,0.00011621,2]
[348295740,1736435473647,-500.0,0.00011621,2]
[348295741,1736435473659,-500.0,0.00011621,2]
[348295742,1736435473670,-500.0,0.00011621,2]
[348295743,1736435473680,-500.0,0.00011621,2]
[348295744,1736435473691,-500.0,0.00011621,2]
[348295745,1736435473701,-500.0,0.00011621,2]
[348295746,1736435473711,-319.44,0.00011621,2]
[348295747,1736435473721,-500.0,0.00011621,2]
[348295748,1736435473732,-500.0,0.00011621,2]
[348295749,1736435473743,-557.72,0.00011621,2]
[348295750,1736435473753,-663.48,0.00011621,2]
[348295751,1736435473763,-427.19,0.00011621,2]
[348295752,1736435473775,-500.0,0.00011621,2]
[348295753,1736435473787,-500.0,0.00011621,2]
[348295754,1736435473798,-633.48,0.00011621,2]
[348295755,1736435473809,-500.0,0.00011621,2]
[348295756,1736435473820,-192.12347331,0.00011621,2]
[348295757,1736435473831,-500.0,0.00011621,2]
[348295758,1736435473843,-500.0,0.00011621,2]
[348295759,1736435473854,-500.0,0.00011621,2]
[348295760,1736435473864,-500.0,0.00011621,2]
[348295761,1736435473874,-604.01,0.00011621,2]
[348295762,1736435473884,-504.42082281,0.00011621,2]
[348295763,1736435473894,-500.0,0.00011621,2]
[348295764,1736435473904,-500.0,0.00011621,2]
[348295765,1736435473914,-815.28,0.00011621,2]
[348295766,1736435473924,-500.0,0.00011621,2]
[348295767,1736435473935,-500.0,0.00011621,2]
[348295768,1736435473945,-808.64,0.00011621,2]
[348295769,1736435473955,-500.0,0.00011621,2]
[348295770,1736435473966,-500.0,0.00011621,2]
[348295771,1736435473977,-500.0,0.00011621,2]
[348295772,1736435473987,-841.09,0.00011621,2]
[348295773,1736435473998,-500.0,0.00011621,2]
[348295774,1736435474008,-565.93465827,0.00011621,2]
[348295775,1736435474019,-500.0,0.00011621,2]
[348295776,1736435474032,-500.0,0.00011621,2]
[348295777,1736435474042,-500.0,0.00011621,2]
[348295778,1736435474053,-500.0,0.00011621,2]
[348295779,1736435474063,-500.0,0.00011621,2]
[348295780,1736435474074,-500.0,0.00011621,2]
[348295781,1736435474086,-500.0,0.00011621,2]
[348295782,1736435474098,-924.86,0.00011621,2]
[348295783,1736435474108,-500.0,0.00011621,2]
[348295784,1736435474119,-549.62,0.00011621,2]
[348295785,1736435474329,-500.0,0.00011621,2]
[348295786,1736435474340,-576.52,0.00011621,2]
[348295787,1736435474351,-500.0,0.00011621,2]
[348295788,1736435474361,-500.0,0.00011621,2]
[348295789,1736435474370,-500.0,0.00011621,2]
[348295790,1736435474380,-500.0,0.00011621,2]
[348295791,1736435474390,-164.2,0.00011621,2]
[348295792,1736435474399,-542.66156171,0.00011621,2]
[348295793,1736435474409,-635.08,0.00011621,2]
[348295794,1736435474419,-708.26,0.00011621,2]
[348295795,1736435474429,-500.0,0.00011621,2]
[348295796,1736435474439,-522.88,0.00011621,2]
[348295797,1736435474450,-500.0,0.00011621,2]
[348295798,1736435474459,-626.4340361,0.00011621,2]
[348295799,1736435474470,-500.0,0.00011621,2]
[348295800,1736435474479,-762.43,0.00011621,2]
[348295801,1736435474488,-500.0,0.00011621,2]
[348295802,1736435474499,-513.7,0.00011621,2]
[348295803,1736435474509,-500.0,0.00011621,2]
[348295804,1736435474519,-500.0,0.00011621,2]
[348295805,1736435474530,-500.0,0.00011621,2]
[348295806,1736435474540,-500.0,0.00011621,2]
[348295807,1736435474550,-500.0,0.00011621,2]
[348295808,1736435474560,-500.0,0.00011621,2]
[348295809,1736435474571,-3645.42,0.00011621,2]
[348295810,1736435474580,-500.0,0.00011621,2]
[348295811,1736435474590,-694.36,0.00011621,2]
[348295812,1736435474599,-500.0,0.00011621,2]
[348295813,1736435474609,-500.0,0.00011621,2]
[348295814,1736435474623,-1629.4,0.00011621,2]
[348295815,1736435474633,-500.0,0.00011621,2]
[348295816,1736435474643,-500.0,0.00011621,2]
[348295817,1736435474652,-500.0,0.00011621,2]
[348295818,1736435474663,-2855.24,0.00011621,2]
[348295819,1736435474672,-500.0,0.00011621,2]
[348295820,1736435474682,-8435.7,0.00011621,2]
[348295821,1736435474692,-2614.32,0.00011621,2]
[348295822,1736435474703,-500.0,0.00011621,2]
[348295823,1736435474712,-500.0,0.00011621,2]
[348295824,1736435474722,-908.06,0.00011621,2]
[348295825,1736435474732,-815.71,0.00011621,2]
[348295826,1736435474742,-500.0,0.00011621,2]
[348295827,1736435474752,-870.3,0.00011621,2]
[348295828,1736435474762,-1496.93,0.00011621,2]
[348295829,1736435474773,-4478.21,0.00011621,2]
[348295830,1736435474782,-165.27,0.00011621,2]
[348295831,1736435474793,-500.0,0.00011621,2]
[348295832,1736435474803,-733.08,0.00011621,2]
[348295833,1736435474814,-500.0,0.00011621,2]
[348295834,1736435474824,-974.9,0.00011621,2]
[348295835,1736435474835,-2577.74,0.00011621,2]
[348295836,1736435474845,-2752.02,0.00011621,2]
[348295837,1736435474855,-500.0,0.00011621,2]
[348295838,1736435474864,-257.83,0.00011621,2]
[348295839,1736435474875,-500.0,0.00011621,2]
[348295840,1736435474885,-654.43,0.00011621,2]
[348295841,1736435474897,-500.0,0.00011621,2]
[348295842,1736435474908,-584.81,0.00011621,2]
[348295843,1736435474919,-1830.73,0.00011621,2]
[348295844,1736435474929,-536.75,0.00011621,2]
[348295845,1736435474939,-5234.76,0.00011621,2]
[348295846,1736435474950,-259.6214002,0.00011621,2]
[348295847,1736435474960,-683.26,0.00011621,2]
[348295848,1736435474971,-500.0,0.00011621,2]
[348295849,1736435474981,-500.0,0.00011621,2]
[348295850,1736435474991,-779.45,0.00011621,2]
[348295851,1736435475001,-500.0,0.00011621,2]
[348295852,1736435475012,-500.0,0.00011621,2]
[348295853,1736435475024,-500.0,0.00011621,2]
[348295854,1736435475034,-573.14,0.00011621,2]
[348295855,1736435475044,-707.18,0.00011621,2]
[348295856,1736435475054,-582.94,0.00011621,2]
[348295857,1736435475065,-500.0,0.00011621,2]
[348295858,1736435475075,-500.0,0.00011621,2]
[348295859,1736435475085,-2126.92,0.00011621,2]
[348295860,1736435475095,-500.0,0.00011621,2]
[348295861,1736435475105,-500.0,0.00011621,2]
[348295862,1736435475115,-500.0,0.00011621,2]
[348295863,1736435475126,-500.0,0.00011621,2]
[348295864,1736435475137,-500.0,0.00011621,2]
[348295865,1736435475147,-500.0,0.00011621,2]
[348295866,1736435475156,-595.03,0.00011621,2]
[348295867,1736435475166,-1299.31,0.00011621,2]
[348295868,1736435475176,-500.0,0.00011621,2]
[348295869,1736435475188,-500.0,0.00011621,2]
[348295870,1736435475199,-500.0,0.00011621,2]
[348295871,1736435475209,-500.0,0.00011621,2]
[348295872,1736435475220,-500.0,0.00011621,2]
[348295873,1736435475230,-500.0,0.00011621,2]
[348295874,1736435475240,-500.0,0.00011622,2]
[348295875,1736435475250,-168.53,0.00011622,2]
[348295876,1736435475260,-500.0,0.00011622,2]
[348295877,1736435475270,-500.0,0.00011622,2]
[348295878,1736435475285,-500.0,0.00011622,2]
[348295879,1736435475295,-181.17113599,0.00011622,2]
[348295880,1736435475304,-500.0,0.00011622,2]
[348295881,1736435475314,-241.94,0.00011622,2]
[348295882,1736435475324,-500.0,0.00011622,2]
[348295883,1736435475334,-500.0,0.00011622,2]
[348295884,1736435475343,-224.49,0.00011622,2]
[348295885,1736435475353,-574.14,0.00011622,2]
[348295886,1736435475363,-500.0,0.00011622,2]
[348295887,1736435475373,-474.84888554,0.00011622,2]
[348295888,1736435475382,-167.58,0.00011622,2]
[348295889,1736435475391,-287.57910054,0.00011622,2]
[348295890,1736435475401,-500.0,0.00011622,2]
[348295891,1736435475411,-500.0,0.00011622,2]
[348295892,1736435475421,-500.0,0.00011622,2]
[348295893,1736435475430,-500.0,0.00011622,2]
[348295894,1736435475440,-500.0,0.00011622,2]
[348295895,1736435475449,-500.0,0.00011622,2]
[348295896,1736435475459,-224.62,0.00011622,2]
[348295897,1736435475469,-500.0,0.00011622,2]
[348295898,1736435475479,-500.0,0.00011622,2]
[348295899,1736435475489,-534.41,0.00011622,2]
[348295900,1736435475500,-1474.26,0.00011622,2]
[348295901,1736435475509,-1068.96,0.00011622,2]
[348295902,1736435475519,-2257.63,0.00011622,2]
[348295903,1736435475532,-1550.66,0.00011622,2]
[348295904,1736435475542,-150.0,0.00011623,2]
[348295905,1736435475552,-2411.94,0.00011623,2]
[348295906,1736435475562,-549.66,0.00011623,2]
[348295907,1736435475572,-958.29,0.00011623,2]
[348295908,1736435475582,-500.0,0.00011623,2]
[348295909,1736435475592,-2516.81,0.00011638,2]
[348295910,1736435475601,-844.98,0.00011638,2]
[348295911,1736435475611,-526.76,0.00011638,2]
[348295912,1736435475624,-1621.63,0.00011639,2]
[348295913,1736435475634,-3527.89,0.00011639,2]
[348295914,1736435475643,-500.0,0.0001164,2]
[348295915,1736435475653,-500.0,0.0001164,2]
[348295916,1736435475663,-500.0,0.0001164,2]
[348295917,1736435475672,-1811.96,0.0001164,2]
[348295918,1736435475681,-1325.78,0.0001164,2]
[348295919,1736435475692,-1904.14,0.0001164,2]
[348295920,1736435475701,-986.79,0.0001164,2]
[348295921,1736435475710,-1138.85,0.0001164,2]
[348295922,1736435475720,-3077.27,0.0001164,2]
[348295923,1736435475729,-9056.59,0.0001164,2]
[348295924,1736435475741,-1508.02,0.0001164,2]
[348295925,1736435475752,-500.0,0.0001164,2]
[348295926,1736435475761,-500.0,0.0001164,2]
[348295927,1736435475771,-2101.42,0.0001164,2]
[348295928,1736435475782,-500.0,0.0001164,2]
[348295929,1736435475791,-500.0,0.0001164,2]
[348295930,1736435475801,-871.11,0.0001164,2]
[348295931,1736435475811,-500.0,0.0001164,2]
[348295932,1736435475821,-1235.04,0.0001164,2]
[348295933,1736435475831,-1000.0,0.0001164,2]
[348295934,1736435475841,-692.05,0.0001164,2]
[348295935,1736435475850,-500.0,0.0001164,2]
[348295936,1736435475860,-1722.76,0.0001164,2]
[348295937,1736435475870,-1270.55,0.0001164,2]
[348295938,1736435475880,-150.0,0.0001166,2]
[348295939,1736435475891,-150.0,0.00011677,2]
[348295940,1736435475901,-156.469,0.0001168,2]
[348295941,1736435475911,-150.0,0.00011695,2]
[348295942,1736435475921,-206.68611674,0.000117,2]
[348295943,1736435475932,-150.0,0.00011729,2]
[348295944,1736435475942,-150.0,0.00011737,2]
[348295945,1736435475952,-150.0,0.00011766,2]
[348295946,1736435475962,-150.0,0.00011786,2]
[348295947,1736435475973,-206.68611674,0.000118,2]
[348295948,1736435475983,-150.0,0.00011814,2]
[348295949,1736435475992,-232.08,0.00011825,2]
[348295950,1736435476002,-150.0,0.00011865,2]
[348295951,1736435476012,-150.0,0.00011865,2]
[348295952,1736435476025,-873.95,0.00011889,2]
[348295953,1736435476035,-853.78,0.00011889,2]
[348295954,1736435476044,-500.0,0.00011889,2]
[348295955,1736435476055,-1622.53,0.00011889,2]
[348295956,1736435476065,-736.68,0.00011889,2]
[348295957,1736435476075,-709.66,0.00011889,2]
[348295958,1736435476086,-1385.38,0.00011889,2]
[348295959,1736435476095,-2843.25,0.00011889,2]
[348295960,1736435476105,-1378.92,0.00011889,2]
[348295961,1736435476114,-686.902198,0.00011889,2]
[348295962,1736435476123,-890.85,0.00011889,2]
[348295963,1736435476132,-918.646778,0.00011889,2]
[348295964,1736435476142,-3339.53,0.00011889,2]
[348295965,1736435476152,-847.48,0.00011889,2]
[348295966,1736435476162,-554.43,0.00011889,2]
[348295967,1736435476172,-156.26,0.00011889,2]
[348295968,1736435476182,-3496.51,0.00011889,2]
[348295969,1736435476192,-500.0,0.00011889,2]
[348295970,1736435476202,-830.77,0.00011889,2]
[348295971,1736435476212,-158.997789,0.00011889,2]
[348295972,1736435476221,-500.0,0.00011889,2]
[348295973,1736435476230,-500.0,0.00011889,2]
[348295974,1736435476241,-1383.26,0.00011889,2]
[348295975,1736435476252,-913.75,0.00011889,2]
[348295976,1736435476264,-183.803741,0.00011889,2]
[348295977,1736435476274,-2581.58,0.00011889,2]
[348295978,1736435476283,-500.0,0.0001189,2]
[348295979,1736435476292,-500.0,0.0001189,2]
[348295980,1736435476303,-500.0,0.0001189,2]
[348295981,1736435476313,-500.0,0.0001189,2]
[348295982,1736435476323,-500.0,0.0001189,2]
[348295983,1736435476333,-255.6105172,0.0001189,2]
[348295984,1736435476343,-500.0,0.0001189,2]
[348295985,1736435476352,-500.0,0.0001189,2]
[348295986,1736435476362,-500.0,0.0001189,2]
[348295987,1736435476372,-500.0,0.0001189,2]
[348295988,1736435476382,-243.66,0.0001189,2]
[348295989,1736435476392,-500.0,0.0001189,2]
[348295990,1736435476402,-380.33,0.0001189,2]
[348295991,1736435476412,-500.0,0.0001189,2]
[348295992,1736435476422,-500.0,0.0001189,2]
[348295993,1736435476432,-500.0,0.0001189,2]
[348295994,1736435476441,-500.0,0.0001189,2]
[348295995,1736435476451,-500.0,0.0001189,2]
[348295996,1736435476460,-500.0,0.0001189,2]
[348295997,1736435476470,-500.0,0.0001189,2]
[348295998,1736435476480,-500.0,0.0001189,2]
[348295999,1736435476490,-569.56,0.0001189,2]
[348296000,1736435476500,-500.0,0.0001189,2]
[348296001,1736435476509,-500.0,0.0001189,2]
[348296002,1736435476519,-500.0,0.0001189,2]
[348296003,1736435476531,-592.81,0.0001189,2]
[348296004,1736435476540,-2773.35,0.0001189,2]
[348296005,1736435476550,-500.0,0.0001189,2]
[348296006,1736435476561,-500.0,0.0001189,2]
[348296007,1736435476571,-500.0,0.0001189,2]
[348296008,1736435476582,-500.0,0.0001189,2]
[348296009,1736435476592,-500.0,0.0001189,2]
[348296010,1736435476602,-572.30380705,0.0001189,2]
[348296011,1736435477005,-951.33619295,0.0001189,2]
[348296012,1736435477016,-1540.84,0.0001189,2]
[348296013,1736435477029,-500.0,0.0001189,2]
[348296014,1736435477038,-500.0,0.0001189,2]
[348296015,1736435477048,-305.97,0.0001189,2]
[348296016,1736435477058,-500.0,0.0001189,2]
[348296017,1736435477067,-500.0,0.0001189,2]
[348296018,1736435477078,-4594.33,0.0001189,2]
[348296019,1736435477087,-601.61,0.0001189,2]
[348296020,1736435477096,-500.0,0.0001189,2]
[348296021,1736435477106,-500.0,0.0001189,2]
[348296022,1736435477116,-679.55,0.0001189,2]
[348296023,1736435477125,-630.88,0.0001189,2]
[348296024,1736435477135,-623.89,0.0001189,2]
[348296025,1736435477145,-500.0,0.0001189,2]
[348296026,1736435477154,-547.01,0.0001189,2]
[348296027,1736435477163,-500.0,0.0001189,2]
[348296028,1736435477173,-500.0,0.0001189,2]
[348296029,1736435477182,-741.61,0.0001189,2]
[348296030,1736435477192,-150.0,0.0001189,2]
[348296031,1736435477202,-500.0,0.00011894,2]
[348296032,1736435477211,-2767.89,0.00011894,2]
[348296033,1736435477221,-4034.94,0.00011894,2]
[348296034,1736435477231,-819.48,0.00011894,2]
[348296035,1736435477240,-1727.46,0.00011894,2]
[348296036,1736435477250,-3578.28,0.00011894,2]
[348296037,1736435477259,-500.0,0.00011894,2]
[348296038,1736435477270,-1001.78,0.00011894,2]
[348296039,1736435477285,-500.0,0.00011894,2]
[348296040,1736435477295,-500.0,0.00011894,2]
[348296041,1736435477305,-740.95,0.00011894,2]
[348296042,1736435477315,-1720.06,0.00011894,2]
[348296043,1736435477324,-500.0,0.00011894,2]
[348296044,1736435477334,-650.21,0.00011894,2]
[348296045,1736435477344,-500.0,0.00011895,2]
[348296046,1736435477354,-500.0,0.00011895,2]
[348296047,1736435477363,-500.0,0.00011895,2]
[348296048,1736435477372,-500.0,0.00011895,2]
[348296049,1736435477382,-715.91,0.00011895,2]
[348296050,1736435477392,-500.0,0.00011895,2]